{"text_format":"1","workbook":"xlsx","n_sheets":16,"sheets":["S","Главная","01","02","03","04","05","06","07","08","09","10","Результат","ошибки","Пр","V"],"not_rendered":{"charts":0,"images":0,"macros":1,"external_links":0,"defined_names":0,"comments":0,"pivot_tables":0},"unopened":[],"bounds":{"document_bytes":16777216,"sheet_cells":100000,"rows_first":2000,"rows_last":500,"rows_between":2000,"halvings":0,"cell_chars":16384,"cell_head_chars":4096},"cells_cut":0,"cells_raw":0,"read":"whole","date_system":"1900"}

{"sheet":"S","index":0,"n_rows":15,"n_cols":3,"rows_kept":15,"cut":false,"hidden":false,"merged":[[16,1,16,3],[1,1,1,3],[3,1,3,3],[6,1,6,3],[14,1,14,3]]}
[]
[null,"Рекомендуемый экран компьютерного монитора 1280*1024 (17\" и более) или ноутбука 1280*800 (15.4\" и более)"]
[]
[null,"Выберите Тест"]
[]
[null,null,{"$f":"(V!B1)","v":"Задержание лиц, совершивших противоправное посягательство на охраняемое имущество, применение специальных средств и огнестрельного оружия, разрешенных в частной охранной деятельности."}]
[]
[null,null,{"$f":"(V!C1)","v":"Проверка документов, досмотр носильных вещей, применение специальных средств и огнестрельного оружия, разрешенных в частной охранной деятельности."}]
[]
[null,null,{"$f":"(V!D1)","v":"Изъятие предметов, досмотр транспорта, применение огнестрельного и холодного оружия."}]
[]
[]
[]
[]
[null,"PS - В отличие от теста на 4 категорию, здесь вместо 7 вопросов - 10 вопросов. Разрешается допустить 2 ошибки"]

{"sheet":"Главная","index":1,"n_rows":15,"n_cols":2,"rows_kept":15,"cut":false,"hidden":false,"merged":[[3,1,3,3],[6,1,6,3],[5,1,5,3],[14,1,14,3],[1,1,1,3]]}
[]
[null,"Рекомендуемый экран компьютерного монитора 1280*1024 (17\" и более) или ноутбука 1280*800 (15.4\" и более)"]
[]
[null,"Вы выбрали тест номер"]
[]
[null,"XX"]
[]
[]
[]
[]
[]
[]
[]
[]
[null,"Правило: Нужно выбрать 1 вариант, который Вы считаете правильным, из 3 предложеных.            "]

{"sheet":"01","index":2,"n_rows":10,"n_cols":2,"rows_kept":10,"cut":false,"hidden":false,"merged":[[1,1,1,2],[3,1,3,2]]}
[]
[null,"Вопрос 01"]
[]
[]
[]
[null,1]
[]
[null,2]
[]
[null,3]

{"sheet":"02","index":3,"n_rows":10,"n_cols":2,"rows_kept":10,"cut":false,"hidden":false,"merged":[[1,1,1,2],[3,1,3,2]]}
[]
[null,"Вопрос 02"]
[]
[]
[]
[null,1]
[]
[null,2]
[]
[null,3]

{"sheet":"03","index":4,"n_rows":10,"n_cols":2,"rows_kept":10,"cut":false,"hidden":false,"merged":[[1,1,1,2],[3,1,3,2]]}
[]
[null,"Вопрос 03"]
[]
[]
[]
[null,1]
[]
[null,2]
[]
[null,3]

{"sheet":"04","index":5,"n_rows":10,"n_cols":2,"rows_kept":10,"cut":false,"hidden":false,"merged":[[1,1,1,2],[3,1,3,2]]}
[]
[null,"Вопрос 04"]
[]
[]
[]
[null,1]
[]
[null,2]
[]
[null,3]

{"sheet":"05","index":6,"n_rows":10,"n_cols":2,"rows_kept":10,"cut":false,"hidden":false,"merged":[[1,1,1,2],[3,1,3,2],[1,5,1,6],[1,9,1,10],[1,13,1,14],[3,5,3,6],[3,9,3,10],[3,13,3,14]]}
[]
[null,"Вопрос 05"]
[]
[]
[]
[null,1]
[]
[null,2]
[]
[null,3]

{"sheet":"06","index":7,"n_rows":10,"n_cols":2,"rows_kept":10,"cut":false,"hidden":false,"merged":[[1,1,1,2],[3,1,3,2]]}
[]
[null,"Вопрос 06"]
[]
[]
[]
[null,1]
[]
[null,2]
[]
[null,3]

{"sheet":"07","index":8,"n_rows":10,"n_cols":2,"rows_kept":10,"cut":false,"hidden":false,"merged":[[1,1,1,2],[3,1,3,2]]}
[]
[null,"Вопрос 07"]
[]
[]
[]
[null,1]
[]
[null,2]
[]
[null,3]

{"sheet":"08","index":9,"n_rows":10,"n_cols":2,"rows_kept":10,"cut":false,"hidden":false,"merged":[[1,1,1,2],[3,1,3,2]]}
[]
[null,"Вопрос 08"]
[]
[]
[]
[null,1]
[]
[null,2]
[]
[null,3]

{"sheet":"09","index":10,"n_rows":10,"n_cols":2,"rows_kept":10,"cut":false,"hidden":false,"merged":[[1,1,1,2],[3,1,3,2]]}
[]
[null,"Вопрос 09"]
[]
[]
[]
[null,1]
[]
[null,2]
[]
[null,3]

{"sheet":"10","index":11,"n_rows":10,"n_cols":2,"rows_kept":10,"cut":false,"hidden":false,"merged":[[1,1,1,2],[3,1,3,2]]}
[]
[null,"Вопрос 10"]
[]
[]
[]
[null,1]
[]
[null,2]
[]
[null,3]

{"sheet":"Результат","index":12,"n_rows":8,"n_cols":5,"rows_kept":8,"cut":false,"hidden":false,"merged":[[3,2,3,4],[1,2,1,4]]}
[]
[null,null,"Результат"]
[]
[null,null,{"$f":"IF((Пр!F32)<74,\"НЕ ПРАВИЛЬНО\",IF((Пр!F32)=82,\"2 ОШИБКА\",IF((Пр!F32)=91,\"1 ОШИБКА\",IF((Пр!F32)=100,\"ВЕРНО\"))))","v":"НЕ ПРАВИЛЬНО"}]
[]
[null,null,"Вы прошли тест номер",null,{"$f":"Главная!B6","v":"XX"}]
[]
[null,null,"Допущено ошибок",null,{"$f":"(Пр!J32)","v":10}]

{"sheet":"ошибки","index":13,"n_rows":14,"n_cols":7,"rows_kept":14,"cut":false,"hidden":false,"merged":[[1,1,2,1],[1,6,2,6],[1,2,2,2],[1,3,1,5]]}
[]
[null,"№ ","Вопросы","Ответы",null,null,"№ "]
[null,null,null,"Результат","Ваш","Правильный"]
[null,1,{"$f":"('01'!B4)","v":0},{"$f":"IF((Пр!H21)=1,\" \",IF((Пр!H21)=10,\" \",IF((Пр!H21)=2,\"ОШИБКА\",IF((Пр!H21)=11,\"ВЕРНО\"))))","v":" "},null,null,1]
[null,2,{"$f":"('02'!B4)","v":0},{"$f":"IF((Пр!H22)=1,\" \",IF((Пр!H22)=10,\" \",IF((Пр!H22)=2,\"ОШИБКА\",IF((Пр!H22)=11,\"ВЕРНО\"))))","v":" "},null,null,2]
[null,3,{"$f":"('03'!B4)","v":0},{"$f":"IF((Пр!H23)=1,\" \",IF((Пр!H23)=10,\" \",IF((Пр!H23)=2,\"ОШИБКА\",IF((Пр!H23)=11,\"ВЕРНО\"))))","v":" "},null,null,3]
[null,4,{"$f":"('04'!B4)","v":0},{"$f":"IF((Пр!H24)=1,\" \",IF((Пр!H24)=10,\" \",IF((Пр!H24)=2,\"ОШИБКА\",IF((Пр!H24)=11,\"ВЕРНО\"))))","v":" "},null,null,4]
[null,5,{"$f":"('05'!B4)","v":0},{"$f":"IF((Пр!H25)=1,\" \",IF((Пр!H25)=10,\" \",IF((Пр!H25)=2,\"ОШИБКА\",IF((Пр!H25)=11,\"ВЕРНО\"))))","v":" "},null,null,5]
[null,6,{"$f":"('06'!B4)","v":0},{"$f":"IF((Пр!H26)=1,\" \",IF((Пр!H26)=10,\" \",IF((Пр!H26)=2,\"ОШИБКА\",IF((Пр!H26)=11,\"ВЕРНО\"))))","v":" "},null,null,6]
[null,7,{"$f":"('07'!B4)","v":0},{"$f":"IF((Пр!H27)=1,\" \",IF((Пр!H27)=10,\" \",IF((Пр!H27)=2,\"ОШИБКА\",IF((Пр!H27)=11,\"ВЕРНО\"))))","v":" "},null,null,7]
[null,8,{"$f":"('08'!B4)","v":0},{"$f":"IF((Пр!H28)=1,\" \",IF((Пр!H28)=10,\" \",IF((Пр!H28)=2,\"ОШИБКА\",IF((Пр!H28)=11,\"ВЕРНО\"))))","v":" "},null,null,8]
[null,9,{"$f":"('09'!B4)","v":0},{"$f":"IF((Пр!H29)=1,\" \",IF((Пр!H29)=10,\" \",IF((Пр!H29)=2,\"ОШИБКА\",IF((Пр!H29)=11,\"ВЕРНО\"))))","v":" "},null,null,9]
[null,10,{"$f":"('10'!B4)","v":0},{"$f":"IF((Пр!H30)=1,\" \",IF((Пр!H30)=10,\" \",IF((Пр!H30)=2,\"ОШИБКА\",IF((Пр!H30)=11,\"ВЕРНО\"))))","v":" "},null,null,10]
[null,null,null,null,{"$f":"('10'!C8)","v":0},{"$f":"('10'!C8)","v":0}]

{"sheet":"Пр","index":14,"n_rows":32,"n_cols":10,"rows_kept":32,"cut":false,"hidden":false,"merged":[[2,2,11,2],[31,3,31,4],[21,3,21,4],[22,3,22,4],[23,3,23,4],[24,3,24,4],[25,3,25,4],[26,3,26,4],[20,3,20,4],[18,3,18,9],[27,3,27,4],[28,3,28,4],[29,3,29,4]]}
[]
[null,"№ ","Вопросы","Ответ"]
[null,1,"Пожалуйста не меняйте здесь настройки. Тест предназначен лишь в помощи и распространяется бесплатно. Любые вопросы по работе теста и замечания пишите по адресу http://OXPAHA.my1.ru в раздел Гостевая Книга"]
[null,2]
[null,3]
[null,4]
[null,5]
[null,6]
[null,7]
[null,8]
[null,9]
[null,10]
[]
[]
[]
[]
[]
[]
[null,null,null,"Не менять настройки"]
[]
[null,null,null,"Вопрос 1",null,{"$f":"IF(D3,10,1)","v":1},null,{"$f":"SUM(F21,H32)","v":1},null,{"$f":"D3","v":0}]
[null,null,null,"Вопрос 2",null,{"$f":"IF(D4,10,1)","v":1},null,{"$f":"SUM(F22,H32)","v":1},null,{"$f":"D4","v":0}]
[null,null,null,"Вопрос 3",null,1,null,{"$f":"SUM(F23,H32)","v":1},null,0]
[null,null,null,"Вопрос 4",null,1,null,{"$f":"SUM(F24,H32)","v":1},null,0]
[null,null,null,"Вопрос 5",null,1,null,{"$f":"SUM(F25,H32)","v":1},null,0]
[null,null,null,"Вопрос 6",null,1,null,{"$f":"SUM(F26,H32)","v":1},null,0]
[null,null,null,"Вопрос 7",null,1,null,{"$f":"SUM(F27,H32)","v":1},null,0]
[null,null,null,"Вопрос 8",null,1,null,{"$f":"SUM(F28,H32)","v":1},null,0]
[null,null,null,"Вопрос 9",null,1,null,{"$f":"SUM(F29,H32)","v":1},null,0]
[null,null,null,"Вопрос 10",null,1,null,{"$f":"SUM(F30,H32)","v":1},null,0]
[]
[null,null,null,"Сумма",null,{"$f":"SUM(F21:F30)","v":10},null,0,null,{"$f":"10-(SUM(J21:J30))","v":10}]

{"sheet":"V","index":15,"n_rows":180,"n_cols":4,"rows_kept":180,"cut":false,"hidden":false,"merged":[]}
["Какие меры принуждения могут применять частные охранники?","Задержание лиц, совершивших противоправное посягательство на охраняемое имущество, применение специальных средств и огнестрельного оружия, разрешенных в частной охранной деятельности.","Проверка документов, досмотр носильных вещей, применение специальных средств и огнестрельного оружия, разрешенных в частной охранной деятельности.","Изъятие предметов, досмотр транспорта, применение огнестрельного и холодного оружия."]
["Какие виды специальных средств разрешается использовать в частной охранной деятельности?","Резиновые палки, наручники, средства для принудительной остановки транспорта.","Защитные шлемы, защитные жилеты, наручники и резиновые палки.  ","Резиновые палки, слезоточивые вещества, служебные собаки."]
[]
["В каком нормативном акте содержатся правила применения отдельных видов специальных средств?","В Законе Российской Федерации «О частной детективной и охранной деятельности в Российской Федерации».","В Федеральном законе «Об оружии».","В соответствующем постановлении Правительства Российской Федерации."]
[]
["Что считается прогулом в соответствии с Трудовым кодексом Российской Федерации? ","Отсутствие на рабочем месте без уважительной причины более одного часа. ","Отсутствие на рабочем месте без уважительной причины более четырех часов подряд.","Отсутствие на рабочем месте без уважительной причины от двух до четырех часов."]
["В каких случая факт того, что гражданин был осужден за уголовное преступление, не является препятствием для получения им удостоверения охранника?","В случае, если гражданин имеет судимость за преступление, совершенное по неосторожности, либо в случае погашения или снятия судимости. ","В случае, если гражданин имеет судимость за преступление, совершенное по неосторожности, либо осужден условно.","В обоих указанных выше случаях."]
["Должен ли охранник беспрепятственно допустить на охраняемый объект лиц, представившихся работниками правоохранительных органов?",".Должен в любом случае, если предъявлены удостоверения, сходные с удостоверениями работников правоохранительных органов. ","Должен в случаях, когда законом предусмотрен беспрепятственный допуск, после того как убедится, что указанные лица являются работниками правоохранительных органов.","Не должен."]
["Может ли частный охранник не только задержать лицо, совершившее противоправное посягательство на охраняемое имущество, но и забрать у правонарушителя оружие и другие орудия преступления (при их очевидном наличии)?","Не имеет ни права, ни возможности, это дело органов внутренних дел","Имеет право и задерживать и изымать на месте правонарушения","Имеет право задержать указанное лицо на месте правонарушения при условии его незамедлительной передачи в милицию, но забрать орудие преступления может только в ситуациях  необходимой обороны и крайней необходимости"]
["Какова минимальная продолжительность ежегодного отпуска, предусмотренная Трудовым кодексом РФ?","Не менее 28 рабочих дней","Не менее 28 календарных дней","По усмотрению администрации, но не менее 14 календарных дней"]
[]
["Какие технические средства охраны могут использоваться при осуществлении частной охранной деятельности?","Технические средства охраны, произведенные в Российской Федерации","Технические средства охраны, перечень видов которых устанавливается Правительством Российской Федерации ","Любые технические средства охраны по усмотрению руководителя частной охранной организации"]
["Могут ли иностранные граждане заниматься частной охранной деятельностью на территории Российской Федерации?","Могут","Не могут","Могут на основании соответствующего международного договора Российской Федерации"]
[]
["В соответствии с действующим законодательством о необходимой обороне  к субъектам посягательства, которое отражает обороняющийся, относятся:","Люди (физические лица)","Стихия (силы природы)","Оружие (подручные предметы)"]
["В соответствии с действующим законодательством при необходимой обороне вред может быть причинен:","Посягающему лицу.","Третьим лицам.","Не может быть причинен никому"]
["Могут ли действия охранника по защите жизни и здоровья другого лица расцениваться как действия в состоянии необходимой обороны:","Не могут ни при каких условиях.","Могут, если соблюдены условия необходимой обороны, предусмотренные законом.","Могут, только если при указанном лице находилось охраняемое имущество."]
["Допускается ли причинение вреда третьим лицам в состоянии необходимой обороны?","Да, при групповом нападении.","Да, при вооруженном нападении.","Нет."]
["Вред, причиненный в состоянии крайней необходимости:","Не подлежит возмещению.","Во всех случаях подлежит возмещению в полном объеме лицом, причинившим вред.","Подлежит возмещению по решению суда."]
["Причинение вреда, меньшего, чем предотвращенный, является обязательным условием правомерности действий:","В состоянии необходимой обороны.","В состоянии крайней необходимости.","Как в состоянии необходимой обороны, так и в состоянии крайней необходимости."]
[]
[]
["Действия по проверке документов посетителей (а также осмотру вносимого и выносимого ими имущества, регистрации и обработке их персональных данных) охраняемого объекта могут осуществляться:","На основании Закона РФ «О частной детективной и охранной деятельности в РФ».","На добровольной основе, когда посетитель ознакомился с соответствующими правилами, установленными администрацией объекта, и согласился их выполнять (то есть в силу гражданско-правовой сделки, возникающей при проходе такого посетителя на охраняемый объект).","На основании Кодекса Российской Федерации об административных правонарушениях."]
["Имеет ли право гражданин Российской Федерации, имеющий удостоверение охранника, осуществлять охранную деятельность самостоятельно, без трудоустройства в частной охранной организации:","Имеет.","Не имеет.","Имеет, при обязательном условии заключения договора с собственником охраняемого имущества."]
[]
["Допускается ли расторжение трудового договора по инициативе работодателя в случае однократного появления работника на рабочем месте в состоянии алкогольного или наркотического опьянения?","Допускается.","Не допускается.","Допускается только при наличии уровня алкоголя в крови не менее 4 Промиле."]
["При увольнении трудовая книжка выдается работнику:","За одни сутки до увольнения.","В день увольнения.","Не позднее трех рабочих дней, следующих за днем увольнения."]
["Может ли быть работником частной охранной организации  должностное лицо организации, с которой данной частной охранной организацией заключен договор на оказание охранных услуг?","Может.","Не может.","Может в случае, если это предусмотрено договором на оказание охранных услуг данной организации."]
["Где содержится норма права, позволяющая частным охранникам на законном основании производить задержание правонарушителей? ","В Кодексе Российской Федерации об административных правонарушениях (в статье 27.3 КоАП РФ).","В Уголовно-процессуальном кодексе Российской Федерации (в статье 91 УПК РФ).","В Законе Российской Федерации «О частной детективной и охранной деятельности в Российской Федерации» (в статье 12 названного закона)."]
["Какое деяние признается преступлением? ","Виновно совершенное общественно опасное деяние.","Виновно совершенное общественно опасное деяние, запрещенное Уголовным кодексом Российской Федерации под угрозой наказания.","Общественно опасное деяние, запрещенное Уголовным кодексом Российской Федерации под угрозой наказания, независимо от наличия вины."]
["Какие действия (бездействие) признаются административным правонарушением?","Общественно опасное действие (бездействие), за которое не предусмотрено уголовное наказание.","Противоправное действие (бездействие) физического или юридического лица, за которое Кодексом РФ об административных правонарушениях или законами субъектов Российской Федерации об административных правонарушениях установлена административная ответственность.","Противоправное, виновное действие (бездействие) физического или юридического лица, за которое Кодексом РФ об административных правонарушениях или законами субъектов Российской Федерации об административных правонарушениях установлена административная ответственность."]
["В каких пределах работник несет материальную ответственность за причиненный работодателю ущерб?","В размере не более половины своего среднего месячного заработка, если иное не предусмотрено Трудовым кодексом Российской Федерации или иными федеральными законами.","В пределах своего среднего месячного заработка, если иное не предусмотрено Трудовым кодексом Российской Федерации или иными федеральными законами.","В размере не более двух средних месячных заработков, если иное не предусмотрено Трудовым кодексом Российской Федерации или иными федеральными законами."]
["На основании какого решения аннулируется удостоверение частного охранника?","На основании решения суда.","На основании решения руководителя частной охранной организации.","На основании решения органа внутренних дел."]
["На какой срок органами внутренних дел выдается удостоверение частного охранника?","На 3 года.","На 5 лет.","На 4 года."]
["Какое требование предъявляет Закон РФ «О частной детективной и охранной деятельности в РФ» к частному охраннику при продлении удостоверения?","Пройти повторную дактилоскопическую регистрацию в органах внутренних дел.","Пройти профессиональную подготовку в образовательных учреждениях, осуществляющих обучение частных охранников и сдать квалификационный экзамен. ","Пройти повышение квалификации в образовательных учреждениях, осуществляющих обучение частных охранников."]
[]
["В каких случаях Закон РФ «О частной детективной и охранной деятельности в РФ» предусматривает обязательное информирование персонала и посетителей объекта охраны путем размещения соответствующей информации до входа на охраняемую территорию?","В случае оказания услуг по охране имущества.","В случае оказания охранных услуг с использованием видеонаблюдения, а также оказания охранных услуг в виде обеспечения внутриобъектового и (или) пропускного режимов.","В случае оказания охранных услуг на особо важных и режимных объектах."]
["Имеют  ли право на приобретение правового статуса частного охранника граждане, не прошедшие обязательной государственной дактилоскопической регистрации?","Нет, не имеют.","Да, имеют.","Имеют, если не используют в процессе осуществления трудовой функции служебное оружие."]
["Обязан ли частный охранник иметь личную карточку охранника?","Да, обязан.","Нет, не обязан.","Обязан только в случае выполнения трудовой функции со служебным оружием."]
["В какой срок охранник (руководитель или уполномоченный представитель  охранной организации)  должны подать заявление в орган внутренних дел о продлении срока действия удостоверения?","Не менее чем за 30 дней до окончания срока его действия.","Не менее чем за 15  дней до окончания срока его действия.","Не менее чем за 45 дней до окончания срока его действия."]
["В какой срок частный охранник обязан сообщить в орган  внутренних  дел  по месту нахождения учетного дела  в случае утраты удостоверения, приведения его в негодность, изменения фамилии (имени, отчества)?","Не позднее 5 дней со дня наступления таких событий.","Не позднее 10 дней со дня наступления таких событий.","Не позднее 15 дней со дня наступления таких событий."]
["На какой разряд вправе претендовать гражданин, сдающий квалификационный экзамен на охранника  в соответствии с Единым тарифно-квалификационным справочником работ и профессий рабочих?","На первый, второй и третий разряды.","На четвертый, пятый и шестой разряды.","На шестой, седьмой и восьмой  разряды."]
[]
["Кого и в какой срок в соответствии с законом  обязан уведомить частный охранник в случаях, когда при применении  специальных средств и огнестрельного оружия граждане получили телесные повреждения?","Немедленно уведомить прокурора и  в возможно короткий срок  органы здравоохранения и внутренних дел.\n","Немедленно уведомить органы здравоохранения и руководителя охранной организации.","Незамедлительно уведомить заказчика частной охранной услуги."]
["Предусмотрено ли нормативными правовыми актами Правительства РФ применение охранниками специальных средств для отражения нападения, непосредственно угрожающего жизни и здоровью охраняемых граждан?","Нет, не предусмотрено.","Предусмотрено только в состоянии необходимой обороны.","Да, предусмотрено."]
["В каких случаях разрешается применять специальные средства  в отношении женщин с видимыми признаками беременности, лиц с явными признаками инвалидности и несовершеннолетних, когда их возраст очевиден или известен частному охраннику?","В случае оказания ими вооруженного сопротивления, совершения группового либо иного нападения, угрожающего жизни и здоровью частного охранника или охраняемому имуществу.","В случаях оказания указанными лицами группового сопротивления.","В случаях отказа правонарушителя подчиниться требованию охранника  следовать в охранное помещение."]
["По каким частям тела правонарушителя запрещается нанесение ударов специальным средством - резиновой палкой?","По спине и ногам.","По рукам и затылочной части головы.","По голове, шее, и ключичной области, животу, половым органам."]
[]
[]
[]
["Оказание охранных услуг в специальной форменной одежде в соответствии с законом является:","Обязанностью работников частной охранной организации (не зависимо от каких бы то ни было условий).","Правом работников частной охранной организации (не зависимо от каких бы то ни было условий).","Правом работников частной охранной организации (если иное не оговорено в договоре  с заказчиком)."]
["Какие требования предъявляет Закон «О частной детективной и охранной деятельности в Российской Федерации» к транспортным средствам, используемым в частной охранной деятельности?","На них может быть нанесена любая специальная раскраска.","На них не могут наносится информационные надписи и знаки.","Специальная раскраска, информационные надписи и знаки на транспортных средствах частных охранных организаций подлежат согласованию с органами внутренних дел в порядке, определяемом Правительством Российской Федерации."]
["По достижении какого возраста гражданин вправе претендовать на приобретение статуса частного охранника?","По достижении 18 лет.","По достижении 21 года.","По достижении 25 лет."]
["В каких случаях правомерно причинение посягающему лицу любого вреда в состоянии необходимой обороны?","В случае группового посягательства.","В случае, если посягательство сопряжено с насилием, опасным для жизни обороняющегося или другого лица, либо с непосредственной угрозой применения такого насилия.","В случае, если посягательство сопряжено с насилием, опасным для здоровья обороняющегося."]
["Имеют ли право на необходимую оборону лица, имеющие возможность избежать общественно опасного посягательства или обратиться за помощью к другим лицам или органам власти?","Да, имеют.","Нет, не имеют.","Имеют, если посягательство сопряжено с насилием, опасным для жизни обороняющегося."]
["Подлежит ли возмещению вред, причиненный посягающему лицу в состоянии необходимой обороны, если при этом не было допущено превышения пределов необходимой обороны?","Да, подлежит.","Подлежит частично на основании судебного решения.","Не подлежит.   "]
["В каких случаях от охранника не требуется предупреждения о применении специальных средств и огнестрельного оружия?","В случаях, когда может возникнуть угроза жизни и здоровью охраняемых граждан.","В случаях, когда промедление в применении специальных средств или огнестрельного оружия создает непосредственную опасность его жизни и здоровью или может повлечь за собой иные тяжкие последствия.","В случаях, когда имеется угроза применения насилия, опасного для жизни охранника."]
["Охранник, несущий службу в  офисном помещении  услышал звуки выстрелов в соседней комнате. Какой из вариантов действий ему следует избрать?","Открыть дверь и  войти в соседнюю комнату, чтобы оценить обстановку","Укрыться и, не производя других действий, ждать развития ситуации","Принять меры к оповещению правоохранительных органов,  приготовить к применению имеющееся оружие (специальные средства), и далее используя обстановку офиса для укрытия, выяснить причину стрельбы"]
["Какая из приводимых ниже классификаций наиболее широко охватывает возможные виды охраняемых объектов:","Охраняемые объекты делятся на наземные и подземные ","Охраняемые объекты делятся на стационарные и подвижные","Охраняемые объекты делятся на складские и производственные"]
["Какой нормативный акт позволяет охранникам не допустить на охраняемый объект лиц, не предъявивших установленных документов:","Инструкция частного охранного предприятия по охране объекта","Закон  Российской Федерации «О частной детективной и охранной деятельности в Российской Федерации»","Локальный нормативный акт администрации охраняемого объекта"]
["Какой способ оптимален для информирования посетителей о правилах пропускного режима, установленных на охраняемом объекте:","Размещение информации об установленных заказчиком правилах перед входом на охраняемую территорию","Устное разъяснение со стороны охранника","Ознакомление посетителей с  текстом инструкции по охране объекта"]
["Первоначальные действия охранника при обнаружении предмета с признаками взрывного устройства:","Зафиксировать время обнаружения, принять меры к ограждению и охране подходов к опасной зоне, проинформировать правоохранительные органы","Осмотреть подозрительный предмет и перенести его в безопасное место, проинформировать правоохранительные органы","Действовать по указанию администрации охраняемого объекта."]
["Первоначальные действия охранника в случае срабатывания взрывного устройства на охраняемом объекте:","Незамедлительно сообщить руководству охранного предприятия о случившемся, принять меры по повышению эффективности охраны, проинформировать правоохранительные органы.","Зафиксировать время взрыва, обеспечить организованную и быструю эвакуацию сотрудников охраняемого объекта на безопасное удаление, проинформировать правоохранительные органы, организовать оказание помощи пострадавшим.","Отключить на объекте электричество и газоснабжение, проинформировать правоохранительные органы, организовать охрану места происшествия и оказание помощи пострадавшим."]
["На охраняемый объект пытаются пройти лица, представившиеся работниками вневедомственной охраны органов внутренних дел, прибывшими на сработку сигнализации. Охранник должен:","Незамедлительно пропустить прибывших на объект.","Не допускать прибывших на территорию объекта без распоряжения администрации объекта.","Пропустить прибывших на объект после проверочного звонка дежурному по  подразделению  вневедомственной охраны."]
["Наиболее эффективными мерами по обеспечению безопасной охраны инкассируемых с объекта денежных средств являются:","Предварительный осмотр подходов к объекту, подъезд автомобиля для перевозки денежных средств на минимальное расстояние,  взаимная страховка сотрудников охраны.","Наличие у охранников  служебного огнестрельного оружия и средств бронезащиты.","Проведение постоянных занятий с сотрудниками охраны по огневой и физической подготовке."]
["Оптимальными действиями по обеспечению прекращению агрессии толпы в отношении объекта охраны являются:","Вступление сотрудников охраны в физическое противоборство с толпой.","Переключение внимания толпы, выделение и нейтрализация активности лидеров.","Применение специальных средств или оружия на поражение."]
["Процедура заступления охранника на пост по охране стационарного объекта начинается:","С внесения записи в журнал приема-сдачи дежурств.","С доклада администрации охраняемого объекта о заступлении на дежурство.","С осмотра объекта и прилегающей территории."]
["При пресечении попытки проникновения группы правонарушителей на охраняемый объект наиболее эффективным и рациональным средством противодействия является:","Применение охранниками физической силы ","Применение оружия и специальных средств","Использование инженерно-технических  средств"]
[]
["Какие признаки, применяемые при составлении словесного портрета, позволяют наиболее быстро и достоверно выделить описываемое лицо в толпе?","Сопутствующие элементы и признаки (одежда,  украшения,  используемые предметы).","Анатомические признаки (описание головы, лица, волос, иных частей тела).","Функциональные признаки (осанка, походка, жестикуляция, мимика, голос и т.п.)."]
["На что обращается  приоритетное внимание при  обеспечении охраны в местах проведения массовых мероприятий?","Возможность посягательства на имущество участвующих в мероприятии.","Возможность возникновения массовых беспорядков. Признаки террористической угрозы.","Нарушение правил, установленных организаторами мероприятия (безбилетный проход, нахождение в нетрезвом состоянии и т.п.)."]
["При просмотре документов, предъявляемых посетителями в соответствии с правилами, установленными администрацией охраняемых объектов, дополнительное внимание следует уделять:","Наличию у посетителей иных документов (помимо требуемых правилами прохода).","Психологическому состоянию проверяемых.","Уточнению личных данных посетителей, не связанных с реквизитами просматриваемого документа."]
["Наиболее эффективным способом обеспечения безопасности при просмотре (проверке) документов у посетителей охраняемых объектов является:","Проведение проверки с расположением проверяющего относительно проверяемого (либо соответствующим построением группы охраны), обеспечивающим безопасность проверяющего (взаимную страховку охранников).","Проведение проверки с передачей документа для просмотра охраной через специальное защищенное окно (мини-шлюз).","Проведение проверки с приведенным в готовность оружием и специальными средствами."]
["Выделение среди посетителей объектов лиц с нестандартным поведением и их дальнейший контроль является:","Действием, выходящим за рамки функциональных обязанностей охранников","Одним из эффективных способов обеспечения антитеррористической защиты и охраны объектов","Тактическим действием, осуществляемым исключительно по специальному поручению Заказчика"]
["Наиболее правильным вариантом действий охранника в случае срабатывании рамки металлодетектора при проходе посетителя на охраняемый объект (если правилами прохода предусмотрено предъявление всех металлических предметов) является:","Предложение посетителю предъявить все предметы, содержащие металл, а при отказе – проведение принудительного осмотра посетителя","Немедленное задержание посетителя для передачи его в органы внутренних дел","Предложение посетителю предъявить все предметы, содержащие металл, а при отказе - недопущение его на объект"]
["Какое из перечисленных условий задержания, осуществляемого охранниками, является тактическим:","Необходимость удержания инициативы в ходе задержания","Необходимость незамедлительной передачи задерживаемых в органы внутренних дел (милицию)","Необходимость учета правового иммунитета к задержанию определенных категорий лиц"]
["Дополнительным тактическим действием при задержании, осуществляемом охранниками, может быть:","Наличие у охраны оружия и специальных средств","Подача сигналов свистком, принятых в органах внутренних дел (милиции)","Использование служебных собак"]
["На ПЦН (пульт централизованного наблюдения) частного охранного предприятия, имеющего договорные обязательства о выезде своих сотрудников на охраняемые объекты, поступил сигнал с объекта о срабатывании сигнализации. Какой из вариантов действий дежурного ПЦН в этом случае является правильным:","Записать в журнал дежурного по ПЦН данные о сработке сигнализации, самому выехать на охраняемый объект","Оповестить органы внутренних дел, записать в журнал дежурного по ПЦН данные о сработке сигнализации","Направить на объект ГБР (группу быстрого реагирования) - дежурную группу охранников, записать в журнал дежурного по ПЦН данные о сработке сигнализации"]
["Охранники ГБР (группы быстрого реагирования) частного охранного предприятия прибыли на сработку сигнализации на охраняемый имущественный объект. Какой из вариантов оснащения и действий охранников наиболее правилен:","Охранники используют жилеты, шлемы защитные, служебное и гражданское оружие, входящие в перечни специальных средств и вооружения охранников; средства связи; охранники применяют взаимную страховку","Охранники используют служебное оружие, средства связи; группа в полном составе (включая водителя) заходит в охраняемое помещение (на охраняемую территорию) для проверки","Охранники используют жилеты, шлемы защитные, служебное и гражданское оружие, входящие в перечни специальных средств и вооружения охранников, средства связи, служебных собак; часть группы охраняет автомобиль, а другая заходит в охраняемое помещение (на охраняемую территорию) для проверки"]
["Решение о незапланированной остановке автомобиля, на котором следует группа охраны имущества, перевозимого автомобильным транспортом, является обоснованным в случае, если остановка произведена:",".Для подбора пассажира, следующего в попутном направлении – при условии, что пассажир один, а в автомобиле, на котором следует группа охраны, имеется свободное место","Для оказания помощи водителю другой автомашины в неотложном ремонте автомобиля – при условии организации охраны места остановки","Для ожидания прибытия сотрудников ГИБДД на место ДТП с участием водителя автомобиля, на котором следует группа охраны - при условии принятия неотложных мер по усилению охраны, а при необходимости, и по вызову запасного автомобиля"]
["Решение охранника о допуске на охраняемый объект посетителей в ночное время (даже если такой случай не предусмотрен инструкцией) будет целесообразным, если:","Посетителю нужно срочно позвонить по телефону","Лица, представившиеся работниками милиции, попросились переночевать (при условии уведомления дежурного местного ОВД)","Работникам Федеральной службы охраны необходимо организовать пост наблюдения на пути следования объекта государственной охраны (при условии разрешения администрации охраняемого объекта и ответственного лица ЧОП) "]
["В нерабочее время на охраняемый объект обратились лица, с просьбой оказать помощь пострадавшему от ДТП, случившегося напротив входа на объект. Какой из вариантов действий охранника на объекте наиболее правилен:","Не открывая дверей объекта, вызвать милицию и скорую помощь","Вызвать милицию и скорую помощь, в обязательном порядке выйти для оказания первой помощи пострадавшему","Рекомендовать обратившимся самим вызвать соответствующие службы "]
["Эффективные тактические действия охранников по обеспечению безопасности охраняемого объекта предполагают: ","Предупреждение, обнаружение, а затем - пресечение угроз безопасности объекта (в рамках полномочий и тактических возможностей охранников)","Обнаружение, а затем  - пресечение угроз безопасности объекта (в рамках полномочий и тактических возможностей охранников)","Ликвидация угроз безопасности объекта по мере их возникновения (в рамках полномочий и тактических возможностей охранников)"]
["Эффективные тактические действия охранников по осмотру автомобиля на предмет возможной установки взрывных устройств начинаются: ","С внешнего осмотра автомобиля, а затем – осмотра его салона и внутренних полостей (включая багажник, подкапотное пространство и т.д.) ","С осмотра окружающей территории, а затем – с проверки наличия связей между автомобилем  и окружающими предметами (включая покрытие дороги)","С осмотра салона автомобиля, а затем – внутренних полостей автомобиля (включая багажник, подкапотное пространство и т.д.) "]
["Кто имеет право удалять с места обнаружения, а при наличии необходимых навыков - разминировать взрывные устройства:","Специально подготовленные охранники, назначенные приказом руководителя частной охранной организации","Уполномоченные сотрудники правоохранительных органов и МЧС России","Охранники, непосредственно обнаружившие взрывные устройства"]
["При остановке в населенном пункте сотрудниками органов внутренних дел машины, перевозящей денежные средства, старшему группы охраны целесообразно действовать следующим образом:","Дать команду водителю заглушить двигатель, выйти из автомобиля, подойти к сотруднику милиции, представиться, предъявить документы","Обеспечив блокирование дверей автомобиля, немедленно сообщить об остановке руководителю (дежурному) охранной организации, через переговорное устройство спросить о причине остановки. При любых обстоятельствах из автомобиля не выходить до прибытия группы быстрого реагирования охранной организации (ответственного лица охранного предприятия)","На требование работников ОВД не останавливаться, сообщить руководителю (дежурному) охранной организации и следовать до ближайшего органа внутренних дел"]
["При нахождении на посту по охране стационарного объекта охранник заметил драку, происходящую в непосредственной близости к объекту. Какой из вариантов действий охранника на объекте наиболее правилен:","Не открывая дверей объекта, сообщить в органы внутренних дел","Выйти и разнять дерущихся граждан, так как могут быть повреждены ограждающие конструкции охраняемого объекта","Не предпринимать никаких действий, так как правонарушение происходит вне пределов охраняемого объекта"]
[]
[]
[]
["В системах охранно-пожарной сигнализации могут применяться, среди прочих, следующие оповещатели:","Магнитоконтактные","Световые","Емкостные"]
["В системах охранно-пожарной сигнализации могут применяться, среди прочих, следующие датчики (извещатели):","Акустические","Телевизионные","Радиационные"]
["В большинстве систем охранно-пожарной сигнализации сигнал от охранных датчиков (извещателей) передается непосредственно:","На ПКП (приемно-контрольный прибор), формирующий сигнал тревоги","На пульт дежурного территориального органа внутренних дел","На ПЦН (пульт централизованного наблюдения) подразделения вневедомственной охраны"]
["Какие из приведенных ниже сокращенных (полных) наименований используются для обозначения систем спутниковой навигации?","GPRS (Джи-Пи-Эр-Эс), Скайп","GPS (Джи-Пи-Эс), Глонасс","GSM (Джи-Эс-Эм), Скайлинк"]
["Какой из приведенных ниже запретов предусмотрен общепринятыми правилами радиообмена, действующими в подразделениях охраны (дисциплиной связи)?","Запрет на передачу сведений о метеорологических условиях","Запрет на использование кодовых обозначений (переговорных таблиц)","Запрет на передачу открытым текстом сообщений, раскрывающих существо охранных мероприятий"]
["Какой принцип закладывается в основу работы тамбура безопасности (шлюза), оборудуемого при входе (въезде) на охраняемый объект?","Одна дверь (ворота) не открывается, пока не будет закрыта другая дверь (ворота) ","Первая и вторая дверь (ворота) открываются и закрываются одновременно","Двери (ворота) открываются независимо друг от друга по усмотрению охранника"]
["Какой из режимов допускает одновременное открытие обоих дверей (ворот)  тамбура безопасности (входного шлюза)?","Режим допуска руководителя объекта","Режим экстренной эвакуации","Режим утреннего «наплыва» посетителей"]
["Какие из приведенных ниже сведений по общепринятыми правилами радиообмена могут передаваться открытым текстом по радиосвязи?","Сведения о стихийных бедствиях и несчастных случаях (без указания особо важных объектов и количества жертв)","Сведения о фамилиях и должностях работников охранной организации и охраняемого объекта","Сведения о происшествиях на особорежимных и оборонных объектах"]
["Какое понятие определяется, как «совокупность совместно действующих технических средств, позволяющих автоматически или вручную выдавать сигналы тревоги на ПЦН (в дежурную часть) при разбойном нападении на объект в период его работы»?","Система охранной сигнализации","Система тревожной сигнализации","Система технической безопасности"]
["Какое понятие определяется, как «совокупность совместно действующих технических средств обнаружения проникновения (попытки проникновения) на охраняемый объект, сбора, обработки, передачи и представления в заданном виде информации о проникновении (попытке проникновения) и другой служебной информации»?","Система охранной сигнализации","Система тревожной сигнализации","Система технической безопасности"]
["Технические требования к воротам с электроприводом и дистанционным управлением предусматривают:","Установленное время их открытия и закрытия не более 20 секунд в обоих режимах","Оборудование ворот устройствами аварийной остановки и открытия вручную на случай неисправности или отключения электропитания","Обязательность обучения оператора по 5 классу электрозащиты"]
["Система тревожной сигнализации организуется с использованием принципа:","Запрета дублирования сигнала тревоги. ","Защитного отключения.","Без права отключения."]
["Основное назначение системы контроля и управления доступом (СКУД):","Передача извещений о срабатывании охранной сигнализации с объекта на ПЦО","Обеспечение санкционированного входа и выхода, а также предотвращение несанкционированного прохода в здания, помещения и зоны ограниченного доступа","Ретрансляция сигналов радиосвязи в пределах территории объекта"]
["Основное назначение системы охранного телевидения:","Обеспечение передачи визуальной информации о состоянии охраняемых зон, помещений, периметра и территории объекта в помещение охраны ","Оперативное информирование людей о возникшей или приближающейся внештатной ситуации (аварии, пожаре, стихийном бедствии, нападении, террористическом акте) и координация их действий","Ретрансляция сигналов радиосвязи в пределах территории объекта"]
["Основное назначение системы оповещения на охраняемом объекте:","Обеспечение передачи визуальной информации о состоянии охраняемых зон, помещений, периметра и территории объекта в помещение охраны ","Оперативное информирование людей о возникшей или приближающейся внештатной ситуации (аварии, пожаре, стихийном бедствии, нападении, террористическом акте) и координация их действий","Ретрансляция сигналов радиосвязи в пределах территории объекта"]
["Для осмотра труднодоступных внутренних полостей различных предметов, устройств и конструкций используется:","Технический эндоскоп","Пробоотборник","Монокуляр"]
["Для обеспечения безопасного поиска ферромагнитных предметов (черных металлов) в условиях возможного наличия взрывных устройств с электронной схемой подрыва используются:","Металлодетекторы с собственным зондирующим электромагнитным полем","Магнитометрические поисковые приборы","Нелинейные локаторы"]
["Первое действие охранника при организации передачи информации по каналу радиосвязи:","Нажать на тангенту (клавишу передачи) радиостанции и вызвать корреспондента, назвав его и свой позывной","Убедиться, что канал не занят (радиообмен не производится)","Нажать клавишу тонального вызова"]
["Какой из приведенных примеров диалога охранников по средствам радиосвязи наиболее точно соответствует правилам радиообмена (дисциплине связи):","Волга», я – Петров. Прошу на связь. / Петров, какие проблемы? / «Волга», генеральный прибывает. / Бегу открывать. До связи. /","«Волга», я – «Ока». / «Волга» - на связи. / «Волга», сам прибывает. / Понял. /","«Волга, Волга», я – «Ока». Прошу на связь. / «Ока», «Волга» - на связи. / «Волга», вариант 11 для 01 / «Ока», я вас понял. Конец связи. /"]
["В случае наличия на объекте (посту) охраны огнетушителя с сорванной (нарушенной) пломбой охраннику следует:","Доложить своему руководству (руководству объекта) о необходимости его замены, поскольку в соответствии с техническими требованиями такой огнетушитель должен быть отправлен на проверку","Выбросить огнетушитель в место для бытовых отходов, как непригодный, с уведомлением об этом своего руководства (руководства объекта)","Постараться закрепить пломбу на прежнее место и продолжить осуществление трудовой функции"]
["К первичным средствам пожаротушения относятся:","Пожарные автомобили","Переносные или передвижные огнетушители, пожарные краны и средства обеспечения их использования, пожарный инвентарь, покрывала для изоляции очага возгорания ","Пожарные мотопомпы"]
["Укажите вариант, в котором наиболее полно и правильно указаны все классы защиты, на которые в соответствии с государственным стандартом подразделяется пулестойкое стекло (бронестекло):","1; 2; 2а; 3; 4; 5; 5а; 6; 6а (с защитой вплоть до СВД с боеприпасом 7,62, имеющим специальный сердечник)"," 1; 2; 2а; 3; 4; 5; 5а; 6 (с защитой вплоть до СВД с боеприпасом, имеющим стальной термоупроченный сердечник)","1; 2; 2а; 3; 4; 5; 5а (с защитой вплоть до АКМ с боеприпасом 7,62, имеющим специальный сердечник)"]
["Основные типы огнетушителей, используемые в качестве первичных средств пожаротушения:","Воздушные, Воздушно-капельные, Кислотные, Газонаполненные, Радоновые","Водные, Воздушно-пенные, Порошковые, Углекислотные, Хладоновые ","Высокого давления, Низкого давления, Распылительные, Специальные, Аргоновые"]
["Радионаправлением называется способ организации радиосвязи:","Между двумя корреспондентами, имеющими разные радиоданные (разные рабочие частоты)","Между радиостанциями не менее, чем трех корреспондентов (при этом не менее чем у двух из них мощности радиосигнала совпадают)","Между двумя корреспондентами, имеющими, одинаковые радиоданные (одинаковые рабочие частоты)"]
["Ограждение периметра (отдельных участков территории) охраняемого объекта, в соответствии с техническими нормами подразделяется:","На основное, дополнительное (располагаемое сверху и/или снизу от основного), предупредительное (располагаемое с внешней и/или с внутренней стороны от основного)","На электрическое, механическое и электро-механическое (комплексное)","На внутризонное (располагаемое в пределах одной зоны безопасности), внешнезонное и межзонное"]
["Охранные телевизионные системы в соответствии с требованиями государственных стандартов должны быть устойчивы:","К механическому воздействию.","К несанкционированному доступу к программному обеспечению. ","К «ослеплению» каждой отдельно взятой камеры наблюдения лазерным лучом. "]
["В структуре ограждения периметра охраняемого частной охраной объекта могут применяться (использоваться):","Оголенные провода с током высокого напряжения","Устройства автоматического затопления, автоматические стреляющие устройства","Зона отторжения (участок между основным и внутренним предупредительным ограждением), контрольно-следовая полоса"]
["При использовании технических средств охраны, компьютерной и оргтехники охраннику в части технических требований по их эксплуатации следует руководствоваться:","Требованиями инструкции на посту, а также указаниями администрации охраняемого объекта","Требованиями инструкции предприятий-производителей указанных средств","Личным усмотрением"]
["Какой тип (модель) носимого металлодетектора обеспечивает скрытое распознавание наличия оружия (металлического предмета большой массы) под одеждой посетителя на расстоянии до 70 см.:","Скрытоносимый селективный металлодетектор АКА 7220 (с сигналом оповещения, передаваемом на наушники, в том числе по радиоканалу)","Ручной металлодетектор СФИНКС ВМ-311 (с акустическим и световым сигналом оповещения)","Ручной металлодетектор АКА-7210 МИНИСКАН (с акустическим и световым сигналом оповещения)"]
["Какое техническое средство позволяет охраннику незаметно передать на приемно-контрольный прибор сигнализации скрытый сигнал тревоги? ","Акустический датчик (извещатель), включенный в периметр сигнализации","Переносная тревожная кнопка, использующая радиоканал","Радиоволновый датчик (извещатель), включенный в периметр сигнализации"]
["Первым действием (первым этапом) при оказании доврачебной помощи (первой помощи) является:","Предотвращение возможных осложнений","Прекращение воздействия травмирующего фактора","Правильная транспортировка пострадавшего"]
["Вторым действием (вторым этапом) при оказании доврачебной помощи (первой помощи) является:","Устранение состояния, угрожающего жизни и здоровью пострадавшего","Правильная транспортировка пострадавшего","Предотвращение возможных осложнений"]
["Третьим действием (третьим этапом) при оказании доврачебной помощи (первой помощи) является:","Предотвращение воздействия травмирующего фактора","Предотвращение возможных осложнений","Правильная транспортировка пострадавшего"]
["Правильная транспортировка пострадавшего, находящегося без сознания производится:","В положении на спине","положении на животе (при травмах брюшной полости – на боку)","С приподнятыми нижними конечностями"]
["Способы временной остановки кровотечения:","Частичное сгибание конечности, наложение пластыря, наложение давящей повязки","Пальцевое прижатие, максимальное сгибание конечности, наложение жгута (закрутки), наложение давящей повязки","Придание возвышенного положения конечности, наложение асептической повязки"]
["Техника наложения кровоостанавливающего жгута предусматривает:","Наложение жгута на одежду ниже места кровотечения (с указанием времени наложения в записке)","Наложение жгута на одежду выше места кровотечения (с указанием времени наложения в записке)","Наложение жгута под одежду выше места кровотечения"]
["Время наложения кровоостанавливающего жгута:","Летом – не более, чем на 1,5 часа, зимой – не более, чем на 30 минут","Летом – не более, чем на 2 часа, зимой – не более, чем на 1,5 часа","Не более, чем на 1 час, независимо от окружающей температуры"]
["Что применяется для обработки раны при оказании доврачебной помощи (первой помощи)?","5 % раствор йода или иные спиртосодержащие растворы","Мазь Вишневского","Раствор перманганата калия («марганцовка»)"]
["В каком объеме проводятся мероприятия при прекращении сердечной деятельности и дыхания у пострадавшего? ","Освобождение дыхательных путей, проведение ИВЛ (искусственной вентиляции легких) и НМС (непрямого массажа сердца)","Проведение НМС (непрямого массажа сердца)","Освобождение дыхательных путей, проведение ИВЛ (искусственной вентиляции легких)"]
["Куда накладывается кровоостанавливающий жгут на конечность при кровотечении?","Ниже раны на 4-6 см.","Выше раны на 4-6 см.","Непосредственно на рану."]
["Действия по помощи пострадавшему при попадании инородного тела в дыхательные пути?","Положить пострадавшего на бок и вызвать интенсивную рвоту","Нанести пострадавшему, стоящему прямо, несколько интенсивных ударов ладонью между лопаток","Нагнуть туловище пострадавшего вперед, нанести несколько интенсивных ударов ладонью между лопаток, при отсутствии эффекта -  обхватить пострадавшего сзади, надавить 4-5 раз на верхнюю часть живота"]
["Реакция зрачка пострадавшего на свет свидетельствует:","О наличии сознания","Об отсутствии сознания","О состоянии биологической смерти"]
["В каком порядке проводятся мероприятия доврачебной помощи (первой помощи) при  ранении?","Остановка кровотечения, обеззараживание раны, наложение повязки","Обеззараживание раны, наложение повязки, остановка кровотечения","Остановка кровотечения, наложение повязки"]
["Какие действия проводятся при проникающем ранении грудной клетки (с выходом воздуха в плевральную полость)?","Придание возвышенного положения, закрытие раны повязкой, не пропускающей воздух - с использованием индивидуального перевязочного пакета, иного полиэтиленового пакета и т.п.","Придание возвышенного положения, закрытие раны повязкой, обеспечивающей фиксацию грудной клетки пострадавшего","Придание пострадавшему положения «на спине» с закрытием раны повязкой, не пропускающей воздух - с использованием индивидуального перевязочного пакета, иного полиэтиленового пакета и т.п."]
["Какие правила оказания доврачебной помощи (первой помощи) проводятся при проникающем ранении в брюшную полость?","Не давать пострадавшему жидкость, извлечь инородное тело, накрыть рану стерильной салфеткой","Приподнять голову, дать сладкое теплое питье, накрыть стерильной салфеткой и положить холод на рану","Не давать пострадавшему жидкость, не извлекать инородное тело, накрыть рану стерильной салфеткой  "]
["При возникновении болей в области сердца в первую очередь необходимо:","Измерить давление и частоту пульса"," Помочь принять удобное положение","Дать валидол (нитроглицерин)"]
["К ушибленному месту необходимо приложить:","Грелку","Холод","Спиртовой компресс"]
["При ожоговой ране необходимо:","Очистить рану и промыть ее холодной водой","Наложить сухую стерильную повязку","Смазать рану маслом,  наложить повязку"]
["При попадании слезоточивых и раздражающих веществ на кожу следует:","Протереть последовательно тремя тампонами - с 40% раствором этилового спирта, с 3% раствором бикарбоната натрия (соды), с мыльным раствором","Промыть кожу холодной водой","Промокнуть сухой ветошью"]
["При попадании слезоточивых и раздражающих веществ в глаза необходимо:","Протереть глаза масляным тампоном","Протереть глаза сухой ветошью","Промыть глаза обильной струей теплой воды, затем 2% раствором бикарбоната натрия (соды)"]
["При повреждении костей предплечья или голени шину накладывают:","С захватом верхнего (по отношению к месту перелома) сустава","С захватом двух суставов (выше и ниже места перелома)","С захватом трех суставов"]
["При повреждении костей плеча или бедра шину накладывают:","С захватом верхнего (по отношению к месту перелома) сустава","С захватом двух суставов (выше и ниже места перелома)","С захватом трех суставов (двух ниже и одного выше места перелома)"]
["При вынужденном длительном наложении кровоостанавливающий жгут необходимо:","Периодически ослаблять, и затем переносить выше прежнего места наложения ","Периодически ослаблять, и затем переносить ниже прежнего места наложения ","Периодически ослаблять, и затем накладывать на прежнее место"]
["Порядок оказания медицинской помощи при открытых переломах.","Обезболить (по возможности), наложить повязку, наложить  шину","Наложить шину, наложить повязку на рану","Наложить шину и обезболить (по возможности)"]
["Наибольшая эффективность оказания помощи при выведении пострадавшего из обморока достигается: ","При поднятии ног пострадавшего выше уровня тела","При поднесении ватки, смоченной нашатырным спиртом (при отсутствии  нашытыря – при нажатии на точку в центре носогубного треугольника) ","При укутывании пострадавшего в одеяло"]
["Действия по оказанию доврачебной помощи (первой помощи) при обморожении:","Растереть обмороженную конечность с помощью спиртосодержащих растворов","Растереть обмороженную конечность снегом","Укутать пострадавшую конечность одеялом, одеждой (сухое тепло) и дать теплое питье"]
["Действия по оказанию доврачебной помощи (первой помощи) при термических ожогах:","Смазать маслом, кремом, промыть водой","Снять обгоревшую одежду, вскрыть пузыри, наложить повязку","Освободить от одежды  обожженную часть тела (за исключением присохших фрагментов), пузыри не вскрывать, ничем не смазывать, покрыть чистым сухим материалом (наложить стерильную повязку)"]
["Действия по оказанию доврачебной помощи (первой помощи) при химических ожогах:","Обильно промыть струей воды и нейтрализовать (кислоту – слабым раствором щелочи, щелочь – слабым раствором кислоты)","Промыть водой, просушить","Протереть тампоном, смоченным спиртосодержащей жидкостью"]
["Действия по оказанию доврачебной помощи (первой помощи) при пищевом отравлении:","Вызвать рвоту нажатием на корень языка","Дать выпить 5-6 стаканов теплой воды или слабого раствора пищевой соды, вызвать рвоту, повторить несколько раз","Дать выпить два-три стакана крепкого чая"]
["Помогая пострадавшему, охранник оказывает ему:","Доврачебную помощь (Первую помощь)","Специализированную помощь","Медикаментозную помощь"]
["Какой класс защиты бронежилета (жилета защитного) позволяет защититься от огня из пистолета ПМ и револьвера системы «Наган»?","Первый","Второй","Третий"]
["Какой класс защиты бронежилета (жилета защитного) позволяет защититься от огня из автоматов АК-74, АКМ?","Первый","Второй","Третий"]
["Защита от какого оружия не обеспечивается бронежилетами (жилетами защитными 1-5 классов защиты), используемыми в частной охранной деятельности? ","АКМ с боеприпасом, имеющим стальной термоупрочненный сердечник","СВД с боеприпасом, имеющим легкоплавкий сердечник","СВД с боеприпасом, имеющим стальной термоупрочненный сердечник"]
["Непрерывное ношение бронежилета (жилета защитного) в течении 12 часов (при температуре +18-22°С и влажности до 60%) допускается:","При весе жилета защитного с 9 до 12 кг.","При весе жилета защитного с 7 до 9 кг.","При весе жилета защитного до 7 кг."]
["Как меняется время непрерывного ношения бронежилета (жилета защитного) при повышении температуры и влажности воздуха:","Уменьшается","Остается неизменным","Увеличивается"]
["Как меняется время непрерывного ношения бронежилета (жилета защитного) при понижении температуры воздуха:","Уменьшается","Остается неизменным","Увеличивается"]
["Какие типы бронежилетов (жилетов защитных) не выпускаются отечественными производителями?","Бронежилеты скрытого ношения","Бронежилеты со специальной подсветкой","Бронежилеты с положительной плавучестью"]
["Защита от какого оружия не обеспечивается бронешлемами (шлемами защитными 1-3 классов защиты)? ","ТТ, ПММ, ПСМ","СВД","АПС"]
["Каким дополнительным элементом не комплектуются бронешлемы (шлемы защитные)? ","Шейно-плечевой накладкой ","Бармицей для защиты шеи","Встроенной радиогарнитурой"]
["Каким способом проверяется фиксация замков наручников, не угрожающая нормальному кровообращению у правонарушителя?","Визуальным осмотром конечностей правонарушителя на предмет посинения","Периодическим открытием и закрытием замка наручников","Проверкой возможности браслетов наручников без затруднений поворачиваться на конечностях правонарушителя"]
["Какая модель наручников, используемых в частной охранной деятельности, обладает жесткой системой крепления браслетов между собой?","БР-С","БОС","БКС-1"]
["Какая модель наручников, используемых в частной охранной деятельности, имеет вариант изготовления, предназначенный для стационарного крепления к стенам зданий?","БР-С","БОС","БКС-1"]
["Какова допустимая температура эксплуатации наручников, используемых в частной охранной деятельности, обеспечивающая их надлежащее техническое состояние (исправность)?","От -20°С до +30°С ","От -30°С до +40°С","От -40°С до +50°С"]
["Чистка и смазка наручников, используемых в частной охранной деятельности, производится:","Согласно инструкции предприятия-изготовителя","В порядке, установленном Приказом МВД России","Произвольно, по решению охранника"]
["Палка резиновая ПУС-3, разрешенная для использования в частной охранной деятельности, выпускается в следующих вариантах:","Раскладная и телескопическая","Прямая и с боковой ручкой","Произвольная и штатная"]
["Палки резиновые ПУС-2 и ПР-Т, разрешенные для использования в частной охранной деятельности, имеют в своей конструкции:","Выступающий кольцевой элемент (мини-гарду) рукоятки","Боковую ручку","Металлический наконечник"]
["Палка резиновая ПР-73М, разрешенная для использования в частной охранной деятельности, имеют в своей конструкции:","Выступающий кольцевой элемент (мини-гарду) рукоятки","Боковую ручку","Металлический наконечник"]
["Какая из палок резиновых, разрешенных для использования в частной охранной деятельности, выпускается в варианте «телескопическая»:","ПУС-2","ПР-Т","ПУС-3"]
["Какие из палок резиновых, разрешенных для использования в частной охранной деятельности, имеют наибольшую длину (650 мм):","ПУС-1 и ПУС-2","ПР-Т и ПР-К","ПУС-3"]
["Палки резиновые, разрешенные для использования в частной охранной деятельности, имеют диаметр:","От 30 до 32 мм","От 34 до 36 мм.","От 38 до 40 мм."]
["Какая из палок резиновых, разрешенных для использования в частной охранной деятельности, имеет наибольший вес (850 гр):","ПР-К","ПР-Т","ПР-73М"]
["Какова допустимая температура эксплуатации палок резиновых, используемых в частной охранной деятельности, обеспечивающая их надлежащее техническое состояние (исправность)?","От -20°С до +30°С","От -30°С до +40°С","От -40°С до +50°С"]
["Какова допустимая температура хранения палок резиновых, используемых в частной охранной деятельности, обеспечивающая их надлежащее техническое состояние (исправность)?","От 0°С до +40°С ","От -10°С до +40°С","От -30°С до +40°С"]
["Бронежилеты и бронешлемы (жилеты и шлемы защитные), за исключением изготовленных специально для особых условий эксплуатации, могут терять свои свойства:","При воздействии ультрафиолетового излучения","При намокании","При температуре +30°С"]
["Какие вещества (материалы) запрещается хранить совместно с бронежилетами и бронешлемами (жилетами и шлемами защитными)?","Гидросорбенты  (влагопоглотители)","Резиновые изделия (резину)","Масла и кислоты"]
["Какова температура хранения бронежилетов и бронешлемов (жилетов и шлемов защитных), обеспечивающая их надлежащее техническое состояние (исправность)?","От 0°С до +20°С ","От 0°С до +30°С","От 0°С до +40°С"]
["Хранение каких видов специальных средств, используемых в частной охранной деятельности, допускается ближе 1 метра от отопительных приборов?","Наручников.","Палок резиновых.","Жилетов и шлемов защитных."]
["К дополнительным (съемным) элементам бронезащиты, которыми могут комплектоваться все типы жилетов защитных (за исключением некоторых моделей скрытого ношения) относятся: ","Сменные жесткие позвоночные накладки, маски защитные, перчатки защитные, локтевые (кольцевые) защитные накладки ","Шейно-плечевые накладки, паховые накладки, сменные жесткие защитные элементы (бронепластины)","Спецрадиостанции бронированные, планшеты защитные (бронированные), сапоги специальные защитные"]
["В какой модели наручников, из числа разрешенных в частной охранной деятельности, используется соединительная цепочка?","БР-2М","БОС","БКС-1"]
["Какой класс защиты бронежилета (жилета защитного) позволяет защититься от огня из пистолетов ТТ, ПММ, ПСМ?","Первый","Второй","Третий"]